[Event "Titled Tuesday Blitz January 17 Early 2023"]
[White "Fiorito, Joaquin"]
[Black "Tsotsonava, Elene"]
[WhiteFideId "180173"]
[BlackFideId "13615939"]
[WhiteElo "2405"]
[BlackElo "2053"]
[Result "1/2-1/2"]
[Round "01"]
[TimeControl "180+2"]
[Date "2023.01.17"]
[WhiteClock "0:00:18"]
[BlackClock "0:00:33"]

1. d4 {[%clk 0:03:00]}  Nf6 {[%clk 0:02:55]} 2. Nc3 {[%clk 0:02:56]}  d5 {[%clk 0:02:55]} 3. Bf4 {[%clk 0:02:55]}  a6 {[%clk 0:02:55]} 4. e3 {[%clk 0:02:55]}  Bf5 {[%clk 0:02:55]} 5. Bd3 {[%clk 0:02:54]}  e6 {[%clk 0:02:52]} 6. Bxf5 {[%clk 0:02:52]}  exf5 {[%clk 0:02:53]} 7. Nf3 {[%clk 0:02:46]}  Bb4 {[%clk 0:02:45]} 8. O-O {[%clk 0:02:43]}  Nbd7 {[%clk 0:02:40]} 9. Ne2 {[%clk 0:02:39]}  O-O {[%clk 0:02:39]} 10. Rc1 {[%clk 0:02:36]}  c6 {[%clk 0:02:38]} 11. c4 {[%clk 0:02:34]}  dxc4 {[%clk 0:02:37]} 12. Rxc4 {[%clk 0:02:33]}  Qe7 {[%clk 0:02:37]} 13. Qb3 {[%clk 0:02:24]}  Nd5 {[%clk 0:02:14]} 14. a3 {[%clk 0:02:20]}  Bd6 {[%clk 0:02:02]} 15. Bxd6 {[%clk 0:01:16]}  Qxd6 {[%clk 0:02:03]} 16. Qxb7 {[%clk 0:01:16]}  Rfb8 {[%clk 0:02:02]} 17. Qxc6 {[%clk 0:01:16]}  Qxc6 {[%clk 0:02:02]} 18. Rxc6 {[%clk 0:01:17]}  Rxb2 {[%clk 0:02:02]} 19. Ng3 {[%clk 0:01:06]}  g6 {[%clk 0:01:56]} 20. Rfc1 {[%clk 0:00:48]}  Rb3 {[%clk 0:01:52]} 21. a4 {[%clk 0:00:39]}  Rb4 {[%clk 0:01:38]} 22. R6c4 {[%clk 0:00:36]}  Rab8 {[%clk 0:01:36]} 23. h4 {[%clk 0:00:35]}  h5 {[%clk 0:01:21]} 24. Ne2 {[%clk 0:00:27]}  N7f6 {[%clk 0:01:14]} 25. Ng3 {[%clk 0:00:25]}  a5 {[%clk 0:01:13]} 26. Ne5 {[%clk 0:00:24]}  R8b7 {[%clk 0:00:36]} 27. Nf1 {[%clk 0:00:18]}  Ne4 {[%clk 0:00:20]} 28. f3 {[%clk 0:00:19]}  Nd6 {[%clk 0:00:13]} 29. Rc5 {[%clk 0:00:18]}  Nb6 {[%clk 0:00:08]} 30. Rxa5 {[%clk 0:00:18]}  Nxa4 {[%clk 0:00:09]} 31. Nc6 {[%clk 0:00:18]}  Nb2 {[%clk 0:00:04]} 32. Nxb4 {[%clk 0:00:18]}  Rxb4 {[%clk 0:00:05]} 33. Ra8+ {[%clk 0:00:18]}  Kg7 {[%clk 0:00:05]} 34. Rd8 {[%clk 0:00:19]}  Ndc4 {[%clk 0:00:03]} 35. e4 {[%clk 0:00:19]}  fxe4 {[%clk 0:00:03]} 36. fxe4 {[%clk 0:00:20]}  Rb3 {[%clk 0:00:04]} 37. d5 {[%clk 0:00:20]}  Rd3 {[%clk 0:00:04]} 38. e5 {[%clk 0:00:18]}  Nxe5 {[%clk 0:00:05]} 39. d6 {[%clk 0:00:19]}  Nbc4 {[%clk 0:00:05]} 40. d7 {[%clk 0:00:18]}  Nb6 {[%clk 0:00:04]} 41. Rb1 {[%clk 0:00:17]}  Nbxd7 {[%clk 0:00:04]} 42. Nh2 {[%clk 0:00:17]}  Rd2 {[%clk 0:00:04]} 43. Re1 {[%clk 0:00:15]}  Ra2 {[%clk 0:00:04]} 44. Rd1 {[%clk 0:00:15]}  Nf6 {[%clk 0:00:03]} 45. Rb8 {[%clk 0:00:13]}  Neg4 {[%clk 0:00:04]} 46. Nf3 {[%clk 0:00:12]}  Ne3 {[%clk 0:00:04]} 47. Rd2 {[%clk 0:00:11]}  Ra1+ {[%clk 0:00:04]} 48. Kf2 {[%clk 0:00:11]}  Neg4+ {[%clk 0:00:05]} 49. Kg3 {[%clk 0:00:12]}  Ne4+ {[%clk 0:00:05]} 50. Kf4 {[%clk 0:00:11]}  Nxd2 {[%clk 0:00:06]} 51. Nxd2 {[%clk 0:00:12]}  Ra2 {[%clk 0:00:06]} 52. Rd8 {[%clk 0:00:11]}  Ra4+ {[%clk 0:00:06]} 53. Kg3 {[%clk 0:00:10]}  Nf6 {[%clk 0:00:06]} 54. Nf3 {[%clk 0:00:10]}  Rg4+ {[%clk 0:00:07]} 55. Kh3 {[%clk 0:00:10]}  Ne4 {[%clk 0:00:07]} 56. Rd4 {[%clk 0:00:08]}  Nf2+ {[%clk 0:00:07]} 57. Kh2 {[%clk 0:00:08]}  Rxd4 {[%clk 0:00:08]} 58. Nxd4 {[%clk 0:00:09]}  Ng4+ {[%clk 0:00:09]} 59. Kg3 {[%clk 0:00:09]}  Ne5 {[%clk 0:00:09]} 60. Kf4 {[%clk 0:00:09]}  Kf6 {[%clk 0:00:09]} 61. Ne2 {[%clk 0:00:08]}  Ng4 {[%clk 0:00:10]} 62. Ng3 {[%clk 0:00:08]}  Ke6 {[%clk 0:00:10]} 63. Ne4 {[%clk 0:00:08]}  f6 {[%clk 0:00:11]} 64. Nc5+ {[%clk 0:00:08]}  Kd5 {[%clk 0:00:11]} 65. Nd7 {[%clk 0:00:09]}  Ke6 {[%clk 0:00:11]} 66. Nf8+ {[%clk 0:00:08]}  Kf7 {[%clk 0:00:12]} 67. Nd7 {[%clk 0:00:09]}  Nh6 {[%clk 0:00:12]} 68. g3 {[%clk 0:00:08]}  Ke7 {[%clk 0:00:12]} 69. Nc5 {[%clk 0:00:08]}  Ng4 {[%clk 0:00:13]} 70. Nd3 {[%clk 0:00:07]}  Ke6 {[%clk 0:00:12]} 71. Nc5+ {[%clk 0:00:07]}  Kd5 {[%clk 0:00:13]} 72. Nd7 {[%clk 0:00:08]}  Ke6 {[%clk 0:00:13]} 73. Nf8+ {[%clk 0:00:08]}  Kf7 {[%clk 0:00:14]} 74. Nd7 {[%clk 0:00:09]}  Ke7 {[%clk 0:00:13]} 75. Nc5 {[%clk 0:00:09]}  Ne5 {[%clk 0:00:14]} 76. Ne4 {[%clk 0:00:10]}  Nf7 {[%clk 0:00:14]} 77. Nc5 {[%clk 0:00:10]}  Nd6 {[%clk 0:00:15]} 78. Nd3 {[%clk 0:00:10]}  Ke6 {[%clk 0:00:15]} 79. Nc5+ {[%clk 0:00:10]}  Ke7 {[%clk 0:00:15]} 80. Nd3 {[%clk 0:00:10]}  Ne8 {[%clk 0:00:16]} 81. Nc5 {[%clk 0:00:10]}  Kf7 {[%clk 0:00:16]} 82. Ne4 {[%clk 0:00:10]}  Ng7 {[%clk 0:00:17]} 83. Nc5 {[%clk 0:00:10]}  Ne6+ {[%clk 0:00:17]} 84. Nxe6 {[%clk 0:00:10]}  Kxe6 {[%clk 0:00:18]} 85. Ke4 {[%clk 0:00:11]}  Kd6 {[%clk 0:00:17]} 86. Kd4 {[%clk 0:00:11]}  Ke6 {[%clk 0:00:18]} 87. Ke4 {[%clk 0:00:12]}  f5+ {[%clk 0:00:18]} 88. Kf4 {[%clk 0:00:12]}  Kf6 {[%clk 0:00:19]} 89. Kf3 {[%clk 0:00:13]}  g5 {[%clk 0:00:19]} 90. hxg5+ {[%clk 0:00:13]}  Kxg5 {[%clk 0:00:20]} 91. Kf2 {[%clk 0:00:13]}  Kg4 {[%clk 0:00:20]} 92. Kg2 {[%clk 0:00:12]}  Kg5 {[%clk 0:00:20]} 93. Kf3 {[%clk 0:00:12]}  Kg6 {[%clk 0:00:21]} 94. Kf4 {[%clk 0:00:13]}  Kf6 {[%clk 0:00:21]} 95. Kf3 {[%clk 0:00:13]}  Ke5 {[%clk 0:00:22]} 96. Ke3 {[%clk 0:00:14]}  Ke6 {[%clk 0:00:23]} 97. Kf4 {[%clk 0:00:13]}  Kf6 {[%clk 0:00:23]} 98. Kf3 {[%clk 0:00:14]}  Kg5 {[%clk 0:00:24]} 99. Kf2 {[%clk 0:00:13]}  h4 {[%clk 0:00:23]} 100. gxh4+ {[%clk 0:00:13]}  Kxh4 {[%clk 0:00:24]} 101. Kf3 {[%clk 0:00:14]}  Kg5 {[%clk 0:00:25]} 102. Kg3 {[%clk 0:00:14]}  f4+ {[%clk 0:00:25]} 103. Kf3 {[%clk 0:00:15]}  Kf5 {[%clk 0:00:26]} 104. Kf2 {[%clk 0:00:16]}  Kg4 {[%clk 0:00:27]} 105. Kg2 {[%clk 0:00:16]}  f3+ {[%clk 0:00:28]} 106. Kf2 {[%clk 0:00:17]}  Kf4 {[%clk 0:00:29]} 107. Kf1 {[%clk 0:00:17]}  Kg4 {[%clk 0:00:30]} 108. Kf2 {[%clk 0:00:18]}  Kf4 {[%clk 0:00:30]} 109. Kf1 {[%clk 0:00:17]}  Ke3 {[%clk 0:00:31]} 110. Ke1 {[%clk 0:00:18]}  Ke4 {[%clk 0:00:32]} 111. Kf2 {[%clk 0:00:18]}  Kf4 {[%clk 0:00:33]} 1/2-1/2


[Site "https://www.chess.com"]

[Event "Titled Tuesday Blitz January 17 Early 2023"]
[White "Degtiarev, Evgeny"]
[Black "Carnicelli, Valerio"]
[WhiteFideId "4149610"]
[BlackFideId "856185"]
[WhiteElo "2385"]
[BlackElo "2370"]
[Result "0-1"]
[Round "01"]
[TimeControl "180+2"]
[Date "2023.01.17"]
[WhiteClock "0:00:03"]
[BlackClock "0:00:04"]

1. d4 {[%clk 0:02:59]}  Nf6 {[%clk 0:02:59]} 2. c4 {[%clk 0:02:59]}  e6 {[%clk 0:03:00]} 3. g3 {[%clk 0:02:58]}  c5 {[%clk 0:03:00]} 4. d5 {[%clk 0:02:57]}  exd5 {[%clk 0:03:01]} 5. cxd5 {[%clk 0:02:58]}  d6 {[%clk 0:03:01]} 6. Nc3 {[%clk 0:02:58]}  g6 {[%clk 0:03:02]} 7. Bg2 {[%clk 0:02:58]}  Bg7 {[%clk 0:03:03]} 8. Nf3 {[%clk 0:02:59]}  O-O {[%clk 0:03:03]} 9. O-O {[%clk 0:03:00]}  Re8 {[%clk 0:03:04]} 10. Bf4 {[%clk 0:02:58]}  a6 {[%clk 0:03:02]} 11. a4 {[%clk 0:02:57]}  Ne4 {[%clk 0:03:03]} 12. Nxe4 {[%clk 0:02:46]}  Rxe4 {[%clk 0:03:04]} 13. Nd2 {[%clk 0:02:46]}  Rb4 {[%clk 0:03:04]} 14. Ne4 {[%clk 0:02:23]}  f5 {[%clk 0:02:18]} 15. Ng5 {[%clk 0:02:08]}  Bxb2 {[%clk 0:02:01]} 16. Rb1 {[%clk 0:02:03]}  Bf6 {[%clk 0:02:01]} 17. Rxb4 {[%clk 0:02:00]}  cxb4 {[%clk 0:02:01]} 18. Ne6 {[%clk 0:01:59]}  Qe7 {[%clk 0:02:02]} 19. e4 {[%clk 0:01:53]}  fxe4 {[%clk 0:01:56]} 20. Re1 {[%clk 0:01:44]}  Nd7 {[%clk 0:01:50]} 21. Rxe4 {[%clk 0:01:38]}  Ne5 {[%clk 0:01:48]} 22. Rxb4 {[%clk 0:01:28]}  Rb8 {[%clk 0:01:43]} 23. Be3 {[%clk 0:00:59]}  b5 {[%clk 0:01:40]} 24. axb5 {[%clk 0:00:58]}  axb5 {[%clk 0:01:37]} 25. f4 {[%clk 0:00:57]}  Nc4 {[%clk 0:01:35]} 26. Bd4 {[%clk 0:00:57]}  Bd7 {[%clk 0:01:23]} 27. Bf1 {[%clk 0:00:48]}  Rc8 {[%clk 0:01:05]} 28. Bxc4 {[%clk 0:00:27]}  Rxc4 {[%clk 0:01:06]} 29. Rxc4 {[%clk 0:00:26]}  bxc4 {[%clk 0:01:07]} 30. Bxf6 {[%clk 0:00:23]}  Qxf6 {[%clk 0:01:07]} 31. Qe2 {[%clk 0:00:21]}  c3 {[%clk 0:00:55]} 32. Qc4 {[%clk 0:00:19]}  h5 {[%clk 0:00:36]} 33. Kg2 {[%clk 0:00:16]}  h4 {[%clk 0:00:36]} 34. Nd4 {[%clk 0:00:15]}  h3+ {[%clk 0:00:34]} 35. Kf3 {[%clk 0:00:13]}  g5 {[%clk 0:00:18]} 36. Qxc3 {[%clk 0:00:13]}  gxf4 {[%clk 0:00:17]} 37. gxf4 {[%clk 0:00:13]}  Qg6 {[%clk 0:00:16]} 38. Ne2 {[%clk 0:00:05]}  Qg2+ {[%clk 0:00:08]} 39. Ke3 {[%clk 0:00:04]}  Bg4 {[%clk 0:00:07]} 40. Qd3 {[%clk 0:00:03]}  Bxe2 {[%clk 0:00:02]} 41. Qxe2 {[%clk 0:00:03]}  Qxd5 {[%clk 0:00:02]} 42. Qg4+ {[%clk 0:00:03]}  Kf8 {[%clk 0:00:02]} 43. Qxh3 {[%clk 0:00:03]}  Qb3+ {[%clk 0:00:03]} 44. Ke4 {[%clk 0:00:03]}  Qxh3 {[%clk 0:00:04]} 0-1


[Site "https://www.chess.com"]

[Event "Titled Tuesday Blitz January 17 Early 2023"]
[White "Sourath Biswas"]
[Black "Orujov, Elshad"]
[WhiteFideId "35091484"]
[BlackFideId "13403540"]
[WhiteElo "2281"]
[BlackElo "2304"]
[Result "1-0"]
[Round "01"]
[TimeControl "180+2"]
[Date "2023.01.17"]
[WhiteClock "0:00:08"]
[BlackClock "0:00:04"]

1. d4 {[%clk 0:03:00]}  Nf6 {[%clk 0:02:57]} 2. Bf4 {[%clk 0:03:00]}  d5 {[%clk 0:02:57]} 3. e3 {[%clk 0:03:00]}  c5 {[%clk 0:02:53]} 4. Nf3 {[%clk 0:02:59]}  Nc6 {[%clk 0:02:53]} 5. Nbd2 {[%clk 0:02:59]}  Bf5 {[%clk 0:02:46]} 6. dxc5 {[%clk 0:02:59]}  e6 {[%clk 0:02:45]} 7. Nd4 {[%clk 0:02:59]}  Bxc5 {[%clk 0:02:29]} 8. Nxf5 {[%clk 0:02:59]}  exf5 {[%clk 0:02:30]} 9. c3 {[%clk 0:03:00]}  O-O {[%clk 0:02:28]} 10. Be2 {[%clk 0:03:00]}  Ne4 {[%clk 0:02:24]} 11. Nxe4 {[%clk 0:02:55]}  fxe4 {[%clk 0:02:24]} 12. Qb3 {[%clk 0:02:50]}  Qb6 {[%clk 0:02:13]} 13. O-O {[%clk 0:02:44]}  Rfd8 {[%clk 0:02:03]} 14. Rfd1 {[%clk 0:02:43]}  Qxb3 {[%clk 0:01:55]} 15. axb3 {[%clk 0:02:42]}  f6 {[%clk 0:01:49]} 16. b4 {[%clk 0:02:35]}  Bb6 {[%clk 0:01:48]} 17. h4 {[%clk 0:02:05]}  g6 {[%clk 0:01:43]} 18. Bb5 {[%clk 0:01:26]}  Kf7 {[%clk 0:01:37]} 19. Rd2 {[%clk 0:01:23]}  Ke6 {[%clk 0:01:36]} 20. Rad1 {[%clk 0:01:20]}  Ne5 {[%clk 0:01:29]} 21. Be2 {[%clk 0:00:56]}  a6 {[%clk 0:00:59]} 22. Ra1 {[%clk 0:00:29]}  h5 {[%clk 0:00:44]} 23. Bxe5 {[%clk 0:00:20]}  fxe5 {[%clk 0:00:44]} 24. Rad1 {[%clk 0:00:19]}  Rac8 {[%clk 0:00:24]} 25. g4 {[%clk 0:00:19]}  d4 {[%clk 0:00:15]} 26. exd4 {[%clk 0:00:15]}  exd4 {[%clk 0:00:16]} 27. cxd4 {[%clk 0:00:16]}  Rh8 {[%clk 0:00:09]} 28. d5+ {[%clk 0:00:15]}  Kd6 {[%clk 0:00:09]} 29. g5 {[%clk 0:00:09]}  Rcf8 {[%clk 0:00:09]} 30. Bf1 {[%clk 0:00:09]}  Rf4 {[%clk 0:00:09]} 31. Bg2 {[%clk 0:00:09]}  Rhf8 {[%clk 0:00:07]} 32. Rf1 {[%clk 0:00:07]}  e3 {[%clk 0:00:05]} 33. Re2 {[%clk 0:00:07]}  exf2+ {[%clk 0:00:05]} 34. Kh2 {[%clk 0:00:07]}  Rxh4+ {[%clk 0:00:04]} 35. Kg3 {[%clk 0:00:08]}  Rg4+ {[%clk 0:00:04]} 36. Kh3 {[%clk 0:00:08]} 1-0


[Site "https://www.chess.com"]

[Event "Titled Tuesday Blitz January 17 Early 2023"]
[White "Alfaro, William"]
[Black "Kleiman, Jake"]
[WhiteFideId "6100457"]
[BlackFideId "2020041"]
[WhiteElo "2134"]
[BlackElo "2399"]
[Result "0-1"]
[Round "01"]
[TimeControl "180+2"]
[Date "2023.01.17"]
[WhiteClock "0:01:18"]
[BlackClock "0:01:12"]

1. Nf3 {[%clk 0:02:54]}  d5 {[%clk 0:03:00]} 2. g3 {[%clk 0:02:54]}  e6 {[%clk 0:03:00]} 3. Bg2 {[%clk 0:02:54]}  Nf6 {[%clk 0:03:00]} 4. O-O {[%clk 0:02:55]}  b5 {[%clk 0:03:00]} 5. d3 {[%clk 0:02:55]}  Bb7 {[%clk 0:02:59]} 6. b3 {[%clk 0:02:54]}  c5 {[%clk 0:02:59]} 7. Bb2 {[%clk 0:02:54]}  Be7 {[%clk 0:02:59]} 8. c4 {[%clk 0:02:52]}  dxc4 {[%clk 0:02:58]} 9. bxc4 {[%clk 0:02:51]}  b4 {[%clk 0:02:58]} 10. Qc2 {[%clk 0:02:47]}  O-O {[%clk 0:02:58]} 11. Nbd2 {[%clk 0:02:46]}  a5 {[%clk 0:02:58]} 12. Rad1 {[%clk 0:02:41]}  Nbd7 {[%clk 0:02:56]} 13. Rfe1 {[%clk 0:02:38]}  Qc7 {[%clk 0:02:56]} 14. Nf1 {[%clk 0:02:38]}  Rfd8 {[%clk 0:02:55]} 15. h4 {[%clk 0:02:34]}  h6 {[%clk 0:02:54]} 16. N1h2 {[%clk 0:02:34]}  Bc6 {[%clk 0:02:52]} 17. d4 {[%clk 0:02:29]}  Be4 {[%clk 0:02:50]} 18. Qd2 {[%clk 0:02:27]}  Nb6 {[%clk 0:02:47]} 19. Rc1 {[%clk 0:02:21]}  Rac8 {[%clk 0:02:42]} 20. Qe3 {[%clk 0:02:17]}  Qb7 {[%clk 0:02:40]} 21. dxc5 {[%clk 0:02:13]}  Bxc5 {[%clk 0:02:33]} 22. Qf4 {[%clk 0:02:13]}  Bd6 {[%clk 0:02:28]} 23. Qe3 {[%clk 0:02:11]}  Nxc4 {[%clk 0:02:22]} 24. Rxc4 {[%clk 0:02:08]}  Rxc4 {[%clk 0:02:23]} 25. Bxf6 {[%clk 0:02:07]}  gxf6 {[%clk 0:02:24]} 26. Qxh6 {[%clk 0:02:07]}  Be7 {[%clk 0:02:10]} 27. Ng4 {[%clk 0:02:05]}  Bg6 {[%clk 0:02:10]} 28. Ne3 {[%clk 0:01:56]}  Rc5 {[%clk 0:02:02]} 29. g4 {[%clk 0:01:53]}  Bf8 {[%clk 0:01:56]} 30. Qf4 {[%clk 0:01:52]}  Qc7 {[%clk 0:01:53]} 31. Qxc7 {[%clk 0:01:45]}  Rxc7 {[%clk 0:01:52]} 32. g5 {[%clk 0:01:41]}  fxg5 {[%clk 0:01:48]} 33. Nxg5 {[%clk 0:01:38]}  Rdc8 {[%clk 0:01:44]} 34. Kh2 {[%clk 0:01:30]}  Rc1 {[%clk 0:01:37]} 35. Rxc1 {[%clk 0:01:28]}  Rxc1 {[%clk 0:01:33]} 36. Bf3 {[%clk 0:01:25]}  a4 {[%clk 0:01:28]} 37. Ng4 {[%clk 0:01:23]}  Bg7 {[%clk 0:01:27]} 38. Ne3 {[%clk 0:01:18]}  b3 {[%clk 0:01:27]} 39. axb3 {[%clk 0:01:17]}  axb3 {[%clk 0:01:27]} 40. h5 {[%clk 0:01:18]}  Bh7 {[%clk 0:01:24]} 41. Ng4 {[%clk 0:01:18]}  b2 {[%clk 0:01:16]} 42. h6 {[%clk 0:01:18]}  Bc3 {[%clk 0:01:12]} 0-1


[Site "https://www.chess.com"]

[Event "Titled Tuesday Blitz January 17 Early 2023"]
[White "Aggelis, Nikolaos"]
[Black "Zaichenko, Daria"]
[WhiteFideId "4213220"]
[BlackFideId "4197453"]
[WhiteElo "2270"]
[BlackElo "2104"]
[Result "1-0"]
[Round "01"]
[TimeControl "180+2"]
[Date "2023.01.17"]
[WhiteClock "0:00:31"]
[BlackClock "0:00:07"]

1. d4 {[%clk 0:03:00]}  d5 {[%clk 0:02:59]} 2. g3 {[%clk 0:03:01]}  c5 {[%clk 0:02:56]} 3. Nf3 {[%clk 0:03:01]}  e6 {[%clk 0:02:52]} 4. Bg2 {[%clk 0:03:02]}  Nf6 {[%clk 0:02:52]} 5. O-O {[%clk 0:03:03]}  Be7 {[%clk 0:02:51]} 6. c4 {[%clk 0:03:03]}  Nc6 {[%clk 0:02:47]} 7. cxd5 {[%clk 0:02:54]}  exd5 {[%clk 0:02:45]} 8. dxc5 {[%clk 0:02:54]}  Bxc5 {[%clk 0:02:45]} 9. a3 {[%clk 0:02:54]}  a6 {[%clk 0:02:42]} 10. Nc3 {[%clk 0:02:50]}  h6 {[%clk 0:02:40]} 11. Na4 {[%clk 0:02:40]}  Be7 {[%clk 0:02:36]} 12. Be3 {[%clk 0:02:39]}  b5 {[%clk 0:02:33]} 13. Rc1 {[%clk 0:02:33]}  Na5 {[%clk 0:02:17]} 14. Bb6 {[%clk 0:02:30]}  Qd6 {[%clk 0:02:09]} 15. Bxa5 {[%clk 0:02:27]}  bxa4 {[%clk 0:02:09]} 16. Qxa4+ {[%clk 0:02:25]}  Bd7 {[%clk 0:02:08]} 17. Qd4 {[%clk 0:02:23]}  O-O {[%clk 0:02:05]} 18. Bb4 {[%clk 0:02:17]}  Qe6 {[%clk 0:02:02]} 19. Bxe7 {[%clk 0:02:17]}  Qxe7 {[%clk 0:02:02]} 20. Rfe1 {[%clk 0:02:15]}  Bf5 {[%clk 0:01:55]} 21. b4 {[%clk 0:02:14]}  a5 {[%clk 0:01:54]} 22. Ne5 {[%clk 0:02:11]}  axb4 {[%clk 0:01:50]} 23. axb4 {[%clk 0:02:12]}  Rfe8 {[%clk 0:01:42]} 24. Nc6 {[%clk 0:02:11]}  Qd6 {[%clk 0:01:40]} 25. Qc5 {[%clk 0:02:09]}  Qe5 {[%clk 0:01:34]} 26. e3 {[%clk 0:02:01]}  Qb2 {[%clk 0:01:31]} 27. Qd4 {[%clk 0:01:55]}  Qxd4 {[%clk 0:01:26]} 28. Nxd4 {[%clk 0:01:55]}  Bd3 {[%clk 0:01:25]} 29. Bf1 {[%clk 0:01:49]}  Bxf1 {[%clk 0:01:22]} 30. Kxf1 {[%clk 0:01:50]}  Ne4 {[%clk 0:01:21]} 31. Re2 {[%clk 0:01:45]}  Ra4 {[%clk 0:01:09]} 32. Rb2 {[%clk 0:01:44]}  Rea8 {[%clk 0:01:05]} 33. f3 {[%clk 0:01:39]}  Nd6 {[%clk 0:01:02]} 34. b5 {[%clk 0:01:17]}  Nc4 {[%clk 0:01:01]} 35. Re2 {[%clk 0:01:17]}  Ra3 {[%clk 0:00:53]} 36. Kf2 {[%clk 0:01:17]}  Rd3 {[%clk 0:00:48]} 37. Rb1 {[%clk 0:01:08]}  Rb8 {[%clk 0:00:27]} 38. Nc6 {[%clk 0:01:00]}  Rb6 {[%clk 0:00:24]} 39. Rb4 {[%clk 0:00:49]}  Na3 {[%clk 0:00:20]} 40. Nd4 {[%clk 0:00:47]}  Nc4 {[%clk 0:00:19]} 41. Ra4 {[%clk 0:00:44]}  Kh7 {[%clk 0:00:17]} 42. Ra7 {[%clk 0:00:35]}  Nxe3 {[%clk 0:00:15]} 43. Rxe3 {[%clk 0:00:33]}  Rxd4 {[%clk 0:00:15]} 44. Rb3 {[%clk 0:00:33]}  Rd2+ {[%clk 0:00:15]} 45. Ke3 {[%clk 0:00:33]}  Rxh2 {[%clk 0:00:15]} 46. Rxf7 {[%clk 0:00:34]}  Rh5 {[%clk 0:00:14]} 47. Kd4 {[%clk 0:00:33]}  Rg5 {[%clk 0:00:12]} 48. g4 {[%clk 0:00:34]}  h5 {[%clk 0:00:12]} 49. gxh5 {[%clk 0:00:33]}  Rxh5 {[%clk 0:00:13]} 50. Kc5 {[%clk 0:00:33]}  Rb8 {[%clk 0:00:12]} 51. b6 {[%clk 0:00:33]}  Rh6 {[%clk 0:00:10]} 52. b7 {[%clk 0:00:31]}  Rg6 {[%clk 0:00:08]} 53. Rc7 {[%clk 0:00:30]}  Rf6 {[%clk 0:00:07]} 54. Rc8 {[%clk 0:00:30]}  Rf8 {[%clk 0:00:07]} 55. Rxf8 {[%clk 0:00:30]}  Rxf8 {[%clk 0:00:07]} 56. b8=Q {[%clk 0:00:31]} 1-0


[Site "https://www.chess.com"]

[Event "Titled Tuesday Blitz January 17 Early 2023"]
[White "Garmash, Aliona"]
[Black "Maksimenko, Viktor"]
[WhiteFideId "34127620"]
[BlackFideId "13710478"]
[WhiteElo "2039"]
[BlackElo "2196"]
[Result "1-0"]
[Round "01"]
[TimeControl "180+2"]
[Date "2023.01.17"]
[WhiteClock "0:01:31"]
[BlackClock "0:01:23"]

1. d4 {[%clk 0:02:43]}  Nf6 {[%clk 0:02:59]} 2. c4 {[%clk 0:02:42]}  e6 {[%clk 0:03:00]} 3. Nf3 {[%clk 0:02:41]}  d5 {[%clk 0:02:59]} 4. Nc3 {[%clk 0:02:40]}  c5 {[%clk 0:02:58]} 5. cxd5 {[%clk 0:02:38]}  cxd4 {[%clk 0:02:59]} 6. Qxd4 {[%clk 0:02:35]}  exd5 {[%clk 0:02:59]} 7. e4 {[%clk 0:02:34]}  dxe4 {[%clk 0:02:59]} 8. Qxd8+ {[%clk 0:02:33]}  Kxd8 {[%clk 0:03:00]} 9. Ng5 {[%clk 0:02:33]}  Be6 {[%clk 0:03:01]} 10. Nxe6+ {[%clk 0:02:31]}  fxe6 {[%clk 0:03:02]} 11. Bg5 {[%clk 0:02:32]}  h6 {[%clk 0:02:57]} 12. Bxf6+ {[%clk 0:02:31]}  gxf6 {[%clk 0:02:57]} 13. Nxe4 {[%clk 0:02:30]}  Ke7 {[%clk 0:02:54]} 14. O-O-O {[%clk 0:02:28]}  Bg7 {[%clk 0:02:53]} 15. Kb1 {[%clk 0:02:21]}  Nc6 {[%clk 0:02:49]} 16. Bc4 {[%clk 0:02:12]}  Ne5 {[%clk 0:02:25]} 17. Bb3 {[%clk 0:02:07]}  Rac8 {[%clk 0:02:15]} 18. Rhe1 {[%clk 0:02:05]}  Rc6 {[%clk 0:01:58]} 19. f4 {[%clk 0:01:58]}  Nf7 {[%clk 0:01:43]} 20. f5 {[%clk 0:01:46]}  exf5 {[%clk 0:01:25]} 21. Nd6+ {[%clk 0:01:35]}  Ne5 {[%clk 0:01:25]} 22. Nxf5+ {[%clk 0:01:32]}  Kf8 {[%clk 0:01:23]} 23. Rd8# {[%clk 0:01:31]} 1-0


[Site "https://www.chess.com"]

[Event "Titled Tuesday Blitz January 17 Early 2023"]
[White "Royal, Shreyas"]
[Black "Rios Escobar, Adan"]
[WhiteFideId "448869"]
[BlackFideId "3403645"]
[WhiteElo "2438"]
[BlackElo "2234"]
[Result "1-0"]
[Round "01"]
[TimeControl "180+2"]
[Date "2023.01.17"]
[WhiteClock "0:01:16"]
[BlackClock "0:00:02"]

1. e4 {[%clk 0:02:59]}  c5 {[%clk 0:02:59]} 2. Nf3 {[%clk 0:02:59]}  d6 {[%clk 0:03:00]} 3. d4 {[%clk 0:02:59]}  cxd4 {[%clk 0:03:01]} 4. Nxd4 {[%clk 0:02:59]}  Nf6 {[%clk 0:03:01]} 5. Nc3 {[%clk 0:03:00]}  a6 {[%clk 0:03:02]} 6. Be2 {[%clk 0:02:51]}  e5 {[%clk 0:03:01]} 7. Nb3 {[%clk 0:02:51]}  Be6 {[%clk 0:02:59]} 8. O-O {[%clk 0:02:51]}  Nbd7 {[%clk 0:02:59]} 9. Be3 {[%clk 0:02:51]}  Be7 {[%clk 0:02:44]} 10. f3 {[%clk 0:02:51]}  O-O {[%clk 0:02:43]} 11. Qd2 {[%clk 0:02:51]}  Rc8 {[%clk 0:02:27]} 12. Rfd1 {[%clk 0:02:50]}  Qc7 {[%clk 0:02:07]} 13. Rac1 {[%clk 0:02:45]}  b5 {[%clk 0:02:01]} 14. Nd5 {[%clk 0:02:44]}  Bxd5 {[%clk 0:01:53]} 15. exd5 {[%clk 0:02:45]}  Nb6 {[%clk 0:01:53]} 16. Bxb6 {[%clk 0:02:33]}  Qxb6+ {[%clk 0:01:52]} 17. Kh1 {[%clk 0:02:34]}  Bd8 {[%clk 0:01:45]} 18. c4 {[%clk 0:02:33]}  bxc4 {[%clk 0:01:29]} 19. Bxc4 {[%clk 0:02:32]}  Nh5 {[%clk 0:01:24]} 20. g3 {[%clk 0:02:21]}  h6 {[%clk 0:01:16]} 21. Qd3 {[%clk 0:02:10]}  Bg5 {[%clk 0:01:13]} 22. Rc2 {[%clk 0:02:10]}  Rc7 {[%clk 0:01:00]} 23. Nd2 {[%clk 0:02:07]}  Bxd2 {[%clk 0:00:35]} 24. Rdxd2 {[%clk 0:02:08]}  Rfc8 {[%clk 0:00:32]} 25. b3 {[%clk 0:02:03]}  a5 {[%clk 0:00:28]} 26. Kg2 {[%clk 0:01:59]}  Nf6 {[%clk 0:00:22]} 27. h4 {[%clk 0:01:55]}  g6 {[%clk 0:00:22]} 28. Re2 {[%clk 0:01:51]}  Kg7 {[%clk 0:00:21]} 29. g4 {[%clk 0:01:48]}  h5 {[%clk 0:00:19]} 30. g5 {[%clk 0:01:48]}  Nd7 {[%clk 0:00:19]} 31. Qd2 {[%clk 0:01:44]}  Qb4 {[%clk 0:00:16]} 32. Qe3 {[%clk 0:01:42]}  Nb6 {[%clk 0:00:15]} 33. a3 {[%clk 0:01:40]}  Qc5 {[%clk 0:00:14]} 34. Qc1 {[%clk 0:01:34]}  Qd4 {[%clk 0:00:12]} 35. Re4 {[%clk 0:01:33]}  Qc5 {[%clk 0:00:07]} 36. f4 {[%clk 0:01:27]}  Nxd5 {[%clk 0:00:05]} 37. fxe5 {[%clk 0:01:27]}  dxe5 {[%clk 0:00:03]} 38. Rxe5 {[%clk 0:01:28]}  Nf4+ {[%clk 0:00:02]} 39. Qxf4 {[%clk 0:01:27]}  Qxa3 {[%clk 0:00:01]} 40. Qf6+ {[%clk 0:01:26]}  Kh7 {[%clk 0:00:02]} 41. Rf2 {[%clk 0:01:21]}  Qf8 {[%clk 0:00:01]} 42. Bxf7 {[%clk 0:01:20]}  Rxf7 {[%clk 0:00:02]} 43. Qxf7+ {[%clk 0:01:21]}  Qxf7 {[%clk 0:00:02]} 44. Rxf7+ {[%clk 0:01:22]}  Kg8 {[%clk 0:00:03]} 45. Ree7 {[%clk 0:01:22]}  a4 {[%clk 0:00:03]} 46. Rg7+ {[%clk 0:01:21]}  Kh8 {[%clk 0:00:03]} 47. bxa4 {[%clk 0:01:21]}  Rc2+ {[%clk 0:00:02]} 48. Kf3 {[%clk 0:01:19]}  Rf2+ {[%clk 0:00:02]} 49. Ke3 {[%clk 0:01:20]}  Re2+ {[%clk 0:00:02]} 50. Kd4 {[%clk 0:01:20]}  Rd2+ {[%clk 0:00:02]} 51. Kc5 {[%clk 0:01:20]}  Rd5+ {[%clk 0:00:02]} 52. Kb4 {[%clk 0:01:19]}  Rb5+ {[%clk 0:00:02]} 53. Kc4 {[%clk 0:01:18]}  Rc5+ {[%clk 0:00:03]} 54. Kd4 {[%clk 0:01:18]}  Rd5+ {[%clk 0:00:03]} 55. Ke4 {[%clk 0:01:19]}  Rd4+ {[%clk 0:00:04]} 56. Ke5 {[%clk 0:01:19]}  Rd5+ {[%clk 0:00:02]} 57. Kf6 {[%clk 0:01:16]}  Rd6+ {[%clk 0:00:02]} 58. Re6 {[%clk 0:01:16]} 1-0


[Site "https://www.chess.com"]